[Event "41st Jacques-Lemans-Open 2022"]
[Site "St. Veit/Glan"]
[Date "2022.07.12"]
[Round "5.33"]
[White "Rabensteiner, Klaus"]
[Black "Blasge, Tobias"]
[Result "0-1"]
[ECO "D05"]
[WhiteElo "2019"]
[BlackElo "1826"]
[Annotator "ChessBase"]
[PlyCount "104"]
[EventDate "2022.07.09"]
[EventType "swiss"]
[EventCountry "AUT"]
[SourceTitle "playchess.com"]
[Source "ChessBase"]
[SourceQuality "1"]
[TimeControl "40/5400+30:1800+30"]

1. d4 {[%emt 0:00:01]} d5 {[%emt 0:00:05]} 2. e3 {[%emt 0:00:07]} Nf6 {[%emt 0:00:03]} 3. Bd3 {[%emt 0:00:03]} e6 {[%emt 0:00:55]} 4. f4 {[%emt 0:00:11]} c5 {[%emt 0:01:11]} 5. c3 {[%emt 0:00:13]} Nc6 {[%emt 0:03:52]} 6. Nf3 {[%emt 0:01:11]} Be7 {[%emt 0:02:51]} 7. Nbd2 {[%emt 0:00:10]} O-O {[%emt 0:00:35]} 8. O-O Qc7 {[%emt 0:02:14]} 9. Ne5 {[%emt 0:01:11]} a6 {[%emt 0:02:21]} 10. a4 {[%emt 0:03:40]} b6 {[%emt 0:00:04]} 11. Qe2 {[%emt 0:00:08]} Bb7 {[%emt 0:06:29]} 12. Ndf3 {[%emt 0:05:27]} Ne4 {[%emt 0:05:21]} 13. Nxc6 {[%emt 0:03:43]} Bxc6 {[%emt 0:07:43]} 14. Ne5 {[%emt 0:00:56]} Bb7 {[%emt 0:03:23]} 15. Bd2 {[%emt 0:05:00]} f6 {[%emt 0:09:53]} 16. Nf3 {[%emt 0:00:22]} c4 {[%emt 0:01:33]} 17. Bc2 {[%emt 0:02:04]} Bd6 {[%emt 0:06:58]} 18. Be1 {[%emt 0:22:14]} b5 {[%emt 0:02:38]} 19. Nd2 {[%emt 0:12:38]} Bc6 {[%emt 0:03:28]} 20. Qf3 {[%emt 0:05:13]} Qb7 {[%emt 0:06:46]} 21. Nxe4 {[%emt 0:07:38]} dxe4 {[%emt 0:00:04]} 22. Qg4 {[%emt 0:01:04]} f5 {[%emt 0:06:45]} 23. Qe2 {[%emt 0:02:08]} Bd5 {[%emt 0:00:49]} 24. axb5 {[%emt 0:05:55]} axb5 {[%emt 0:04:14]} 25. Bd2 {[%emt 0:00:05]} b4 {[%emt 0:06:08]} 26. cxb4 {[%emt 0:00:41]} Bxb4 {[%emt 0:00:05]} 27. Bc3 {[%emt 0:00:04]} Rxa1 {[%emt 0:06:15]} 28. Rxa1 {[%emt 0:00:05]} Bxc3 {[%emt 0:00:03]} 29. bxc3 {[%emt 0:00:28]} Qb2 {[%emt 0:00:15]} 30. Ra7 {[%emt 0:03:57]} Qxc3 {[%emt 0:01:14]} 31. Rc7 {[%emt 0:01:22]} Ra8 {[%emt 0:05:54]} 32. h3 {[%emt 0:00:37]} Qa5 {[%emt 0:01:06]} 33. Rxc4 {[%emt 0:03:22]} Bxc4 {[%emt 0:00:47]} 34. Qxc4 {[%emt 0:00:02]} Qd5 {[%emt 0:01:46]} 35. Qb4 {[%emt 0:00:07]} h6 {[%emt 0:00:57]} 36. Bb3 {[%emt 0:00:13]} Qd7 {[%emt 0:00:52]} 37. Qb6 {[%emt 0:02:27]} Re8 {[%emt 0:00:35]} 38. Qa5 {[%emt 0:00:44]} Qd6 {[%emt 0:01:05]} 39. Qxf5 {[%emt 0:00:17]} Qc6 {[%emt 0:01:33]} 40. Qg6 {[%emt 0:01:22]} Re7 {[%emt 0:01:00]} 41. f5 {[%emt 0:30:10]} Qc1+ {[%emt 0:06:16]} 42. Kh2 {[%emt 0:00:00]} Qxe3 {[%emt 0:00:06]} 43. Bxe6+ {[%emt 0:00:00]} Kh8 {[%emt 0:00:08]} 44. d5 {[%emt 0:00:00]} Qd4 {[%emt 0:05:50]} 45. Qg3 {[%emt 0:00:00]} Re8 {[%emt 0:02:03]} 46. d6 {[%emt 0:00:00]} e3 {[%emt 0:07:58]} 47. d7 {[%emt 0:00:00]} Rf8 {[%emt 0:02:44]} 48. Qe1 {[%emt 0:00:00]} Qd2 {[%emt 0:00:53]} 49. Qxd2 {[%emt 0:00:00]} exd2 {[%emt 0:00:04]} 50. Bb3 {[%emt 0:00:00]} Rd8 {[%emt 0:00:22]} 51. Kg1 {[%emt 0:00:00]} Rxd7 {[%emt 0:00:13]} 52. Bd1 {[%emt 0:00:00]} Re7 {[%emt 0:00:11]} 0-1

[Event "41st Jacques-Lemans-Open 2022"]
[Site "St. Veit/Glan"]
[Date "2022.07.12"]
[Round "5.34"]
[White "Enne, Harald"]
[Black "Wallner, Dieter"]
[Result "1-0"]
[ECO "D31"]
[WhiteElo "1919"]
[BlackElo "2018"]
[Annotator "ChessBase"]
[PlyCount "63"]
[EventDate "2022.07.09"]
[EventType "swiss"]
[EventCountry "AUT"]
[SourceTitle "playchess.com"]
[Source "ChessBase"]
[SourceQuality "1"]
[TimeControl "40/5400+30:1800+30"]

1. d4 {[%emt 0:00:03]} d5 {[%emt 0:00:08]} 2. c4 {[%emt 0:00:11]} e6 {[%emt 0:00:09]} 3. Nc3 {[%emt 0:00:06]} c6 {[%emt 0:00:08]} 4. Nf3 {[%emt 0:01:06]} dxc4 {[%emt 0:00:19]} 5. a4 {[%emt 0:01:20]} Bb4 {[%emt 0:00:09]} 6. e3 {[%emt 0:00:09]} b5 {[%emt 0:00:07]} 7. Bd2 {[%emt 0:01:08]} a5 {[%emt 0:00:11]} 8. Be2 {[%emt 0:24:28]} Nf6 {[%emt 0:05:43]} 9. O-O {[%emt 0:00:48]} O-O {[%emt 0:07:52]} 10. Qc2 {[%emt 0:04:18]} Ba6 {[%emt 0:05:05]} 11. e4 {[%emt 0:11:24]} h6 {[%emt 0:18:11]} 12. Rfd1 {[%emt 0:03:43]} Nbd7 {[%emt 0:01:06]} 13. Bf4 {[%emt 0:10:44]} Bxc3 {[%emt 0:13:37]} 14. bxc3 {[%emt 0:00:14]} Qe7 {[%emt 0:00:19]} 15. axb5 {[%emt 0:00:54]} Bxb5 {[%emt 0:00:49]} 16. Bc7 {[%emt 0:07:33]} a4 {[%emt 0:05:21]} 17. Bf4 {[%emt 0:03:11]} a3 {[%emt 0:08:52]} 18. e5 {[%emt 0:03:13]} Nd5 {[%emt 0:00:29]} 19. Qd2 {[%emt 0:03:55]} Nxf4 {[%emt 0:04:49]} 20. Qxf4 {[%emt 0:00:02]} Nb6 {[%emt 0:01:13]} 21. Nd2 {[%emt 0:02:04]} f5 {[%emt 0:06:53]} 22. Qf3 {[%emt 0:05:05]} a2 {[%emt 0:03:07]} 23. Rdc1 {[%emt 0:01:48]} Ra3 {[%emt 0:00:17]} 24. Rc2 {[%emt 0:04:05]} Rfa8 {[%emt 0:00:21]} 25. h3 {[%emt 0:00:25]} R8a4 {[%emt 0:04:34]} 26. g3 {[%emt 0:00:51]} Nd5 {[%emt 0:03:56]} 27. Kh2 {[%emt 0:01:02]} Kh7 {[%emt 0:02:32]} 28. Rcc1 {[%emt 0:00:43]} Qg5 {[%emt 0:01:00]} 29. Rc2 {[%emt 0:00:50]} Rxc3 {[%emt 0:03:54]} 30. Rxc3 {[%emt 0:00:49]} Qxd2 {[%emt 0:00:06]} 31. Rcc1 {[%emt 0:00:20]} Qxd4 {[%emt 0:00:20]} 32. Bd1 {[%emt 0:00:43]} 1-0

[Event "41st Jacques-Lemans-Open 2022"]
[Site "St. Veit/Glan"]
[Date "2022.07.12"]
[Round "5.35"]
[White "Kozomara, David"]
[Black "Hafner, Robert"]
[Result "1-0"]
[ECO "B19"]
[WhiteElo "2016"]
[BlackElo "1933"]
[Annotator "ChessBase"]
[PlyCount "113"]
[EventDate "2022.07.09"]
[EventType "swiss"]
[EventCountry "AUT"]
[SourceTitle "playchess.com"]
[Source "ChessBase"]
[SourceQuality "1"]
[TimeControl "40/5400+30:1800+30"]

1. e4 {[%emt 0:00:04]} c6 {[%emt 0:00:05]} 2. d4 {[%emt 0:00:17]} d5 {[%emt 0:00:04]} 3. Nd2 {[%emt 0:00:08]} dxe4 {[%emt 0:00:06]} 4. Nxe4 {[%emt 0:00:05]} Bf5 {[%emt 0:00:04]} 5. Ng3 {[%emt 0:00:24]} Bg6 {[%emt 0:00:06]} 6. h4 {[%emt 0:01:17]} h6 {[%emt 0:00:06]} 7. Nf3 {[%emt 0:00:47]} Nd7 {[%emt 0:00:05]} 8. h5 {[%emt 0:00:14]} Bh7 {[%emt 0:00:06]} 9. Bd3 {[%emt 0:00:12]} Bxd3 {[%emt 0:00:06]} 10. Qxd3 {[%emt 0:00:05]} Ngf6 {[%emt 0:00:18]} 11. Bd2 {[%emt 0:00:29]} e6 {[%emt 0:00:06]} 12. O-O-O {[%emt 0:01:21]} Be7 {[%emt 0:00:06]} 13. Qe2 {[%emt 0:08:28]} O-O {[%emt 0:00:17]} 14. Ne5 {[%emt 0:00:40]} Re8 {[%emt 0:03:15]} 15. Rhe1 {[%emt 0:02:41]} Bf8 {[%emt 0:12:10]} 16. Nf1 {[%emt 0:03:55]} Qc7 {[%emt 0:05:06]} 17. g4 {[%emt 0:00:14]} Rad8 {[%emt 0:08:12]} 18. g5 {[%emt 0:00:20]} hxg5 {[%emt 0:00:09]} 19. Bxg5 {[%emt 0:00:21]} Nxe5 {[%emt 0:02:27]} 20. dxe5 {[%emt 0:00:18]} Rxd1+ {[%emt 0:00:38]} 21. Rxd1 {[%emt 0:00:07]} Nh7 {[%emt 0:04:25]} 22. Bh4 {[%emt 0:05:37]} Be7 {[%emt 0:07:05]} 23. Bxe7 {[%emt 0:02:01]} Rxe7 {[%emt 0:04:03]} 24. f4 {[%emt 0:16:00]} Rd7 {[%emt 0:00:08]} 25. Ne3 {[%emt 0:01:36]} Nf8 {[%emt 0:03:48]} 26. Nc4 {[%emt 0:01:46]} Rxd1+ {[%emt 0:05:51]} 27. Qxd1 {[%emt 0:00:08]} Nd7 {[%emt 0:00:23]} 28. Qg1 {[%emt 0:18:21]} b5 {[%emt 0:10:08]} 29. h6 {[%emt 0:13:11]} g6 {[%emt 0:00:19]} 30. Nd6 {[%emt 0:00:18]} Qb6 {[%emt 0:07:02]} 31. Qg3 {[%emt 0:10:19]} Nf8 {[%emt 0:00:31]} 32. Ne4 {[%emt 0:04:07]} Nh7 {[%emt 0:01:31]} 33. c3 {[%emt 0:01:19]} Qd8 {[%emt 0:04:21]} 34. Kc2 {[%emt 0:03:36]} Nf8 {[%emt 0:15:55]} 35. Nf6+ {[%emt 0:01:06]} Kh8 {[%emt 0:00:07]} 36. Qe3 {[%emt 0:01:38]} Qa5 {[%emt 0:07:17]} 37. Kb1 {[%emt 0:03:54]} Nh7 {[%emt 0:00:48]} 38. Ne4 {[%emt 0:00:50]} Nf8 {[%emt 0:01:20]} 39. Qc5 {[%emt 0:00:55]} Qd8 {[%emt 0:00:33]} 40. Nd6 {[%emt 0:00:30]} Kh7 {[%emt 0:00:38]} 41. Qxa7 {[%emt 0:00:22]} Nd7 {[%emt 0:04:45]} 42. Nxf7 {[%emt 0:01:45]} Qe7 {[%emt 0:00:08]} 43. Ng5+ {[%emt 0:00:44]} Kxh6 {[%emt 0:00:24]} 44. Qa8 {[%emt 0:00:41]} Nf8 {[%emt 0:05:17]} 45. Qxc6 {[%emt 0:02:16]} Qa7 {[%emt 0:03:41]} 46. Qf3 {[%emt 0:04:59]} Kg7 {[%emt 0:03:57]} 47. Ne4 {[%emt 0:03:34]} Nd7 {[%emt 0:01:00]} 48. Nd6 {[%emt 0:00:30]} Qg1+ {[%emt 0:02:23]} 49. Kc2 {[%emt 0:00:20]} Qh2+ {[%emt 0:02:56]} 50. Kb3 {[%emt 0:06:54]} Nc5+ {[%emt 0:00:31]} 51. Kb4 {[%emt 0:01:06]} Nd7 {[%emt 0:04:31]} 52. b3 {[%emt 0:02:40]} Kh6 {[%emt 0:02:33]} 53. Nxb5 {[%emt 0:01:41]} Nb6 {[%emt 0:02:09]} 54. Nc7 {[%emt 0:05:59]} Qh4 {[%emt 0:02:29]} 55. Nxe6 {[%emt 0:00:51]} Qe7+ {[%emt 0:00:14]} 56. Nc5 {[%emt 0:00:07]} Nd7 {[%emt 0:01:09]} 57. Qh3+ {[%emt 0:00:09]} 1-0

[Event "41st Jacques-Lemans-Open 2022"]
[Site "St. Veit/Glan"]
[Date "2022.07.12"]
[Round "5.36"]
[White "Tumanyan, Gor"]
[Black "Lipp, Alfred"]
[Result "1-0"]
[ECO "B30"]
[WhiteElo "1884"]
[BlackElo "2011"]
[Annotator "ChessBase"]
[PlyCount "69"]
[EventDate "2022.07.09"]
[EventType "swiss"]
[EventCountry "AUT"]
[SourceTitle "playchess.com"]
[Source "ChessBase"]
[SourceQuality "1"]
[TimeControl "40/5400+30:1800+30"]

1. e4 {[%emt 0:00:02]} c5 {[%emt 0:00:09]} 2. Nf3 {[%emt 0:00:05]} Nc6 {[%emt 0:00:09]} 3. g3 {[%emt 0:00:17]} g6 {[%emt 0:00:41]} 4. Bg2 {[%emt 0:00:12]} Bg7 {[%emt 0:00:06]} 5. O-O {[%emt 0:00:14]} Nf6 {[%emt 0:02:10]} 6. Qe2 {[%emt 0:00:47]} O-O {[%emt 0:01:29]} 7. c3 {[%emt 0:01:15]} d5 {[%emt 0:04:23]} 8. d3 {[%emt 0:22:39]} d4 {[%emt 0:06:44]} 9. Na3 {[%emt 0:12:51]} Ne8 {[%emt 0:14:20]} 10. Bd2 {[%emt 0:09:05]} Nc7 {[%emt 0:07:06]} 11. Nh4 {[%emt 0:16:59]} dxc3 {[%emt 0:07:40]} 12. bxc3 {[%emt 0:06:30]} Ne5 {[%emt 0:04:10]} 13. Rad1 {[%emt 0:02:22]} Na6 {[%emt 0:09:33]} 14. Bc1 {[%emt 0:11:28]} Nc6 {[%emt 0:04:55]} 15. Bb2 {[%emt 0:03:03]} Be6 {[%emt 0:00:25]} 16. Nc4 {[%emt 0:03:04]} Bxc4 {[%emt 0:04:09]} 17. dxc4 {[%emt 0:00:02]} Qc7 {[%emt 0:04:37]} 18. f4 {[%emt 0:00:28]} Rad8 {[%emt 0:01:33]} 19. e5 {[%emt 0:05:28]} Rxd1 {[%emt 0:13:52]} 20. Rxd1 {[%emt 0:00:08]} Rd8 {[%emt 0:00:59]} 21. Rd5 {[%emt 0:01:35]} e6 {[%emt 0:03:56]} 22. Rd3 {[%emt 0:00:01]} Rxd3 {[%emt 0:01:36]} 23. Qxd3 {[%emt 0:00:02]} Qd8 {[%emt 0:01:16]} 24. Qe2 {[%emt 0:00:44]} Qa5 {[%emt 0:03:43]} 25. a3 {[%emt 0:00:27]} Qa4 {[%emt 0:00:12]} 26. Nf3 {[%emt 0:01:18]} Na5 {[%emt 0:00:09]} 27. Bf1 {[%emt 0:00:17]} Qb3 {[%emt 0:00:31]} 28. Ng5 {[%emt 0:00:21]} h6 {[%emt 0:00:56]} 29. Ne4 {[%emt 0:00:09]} Nxc4 {[%emt 0:00:56]} 30. Qxc4 {[%emt 0:00:05]} Qxb2 {[%emt 0:00:05]} 31. Qa4 {[%emt 0:01:05]} Qc1 {[%emt 0:00:52]} 32. Qe8+ {[%emt 0:01:17]} Bf8 {[%emt 0:00:24]} 33. Nd6 {[%emt 0:00:57]} Qe3+ {[%emt 0:00:19]} 34. Kg2 {[%emt 0:00:07]} Qe2+ {[%emt 0:01:00]} 35. Bxe2 {[%emt 0:00:06]} 1-0

[Event "41st Jacques-Lemans-Open 2022"]
[Site "St. Veit/Glan"]
[Date "2022.07.13"]
[Round "6.1"]
[White "Bosiocic, Marin"]
[Black "Riemelmoser, Franz"]
[Result "1-0"]
[ECO "A05"]
[WhiteElo "2549"]
[BlackElo "2237"]
[Annotator "ChessBase"]
[PlyCount "51"]
[EventDate "2022.07.09"]
[EventType "swiss"]
[EventCountry "AUT"]
[SourceTitle "playchess.com"]
[Source "ChessBase"]
[SourceQuality "1"]
[TimeControl "40/5400+30:1800+30"]

1. Nf3 {[%emt 0:00:03]} Nf6 {[%emt 0:00:16]} 2. g3 {[%emt 0:00:12]} b5 {[%emt 0:00:16]} 3. Bg2 {[%emt 0:01:04]} Bb7 {[%emt 0:00:38]} 4. O-O {[%emt 0:01:30]} e6 {[%emt 0:00:21]} 5. d3 {[%emt 0:00:37]} Be7 {[%emt 0:00:43]} 6. e4 {[%emt 0:01:01]} d6 {[%emt 0:00:29]} 7. Na3 {[%emt 0:01:19]} a6 {[%emt 0:04:54]} 8. c4 {[%emt 0:00:38]} b4 {[%emt 0:01:03]} 9. Qa4+ {[%emt 0:00:36]} Nc6 {[%emt 0:03:30]} 10. Nc2 {[%emt 0:00:08]} a5 {[%emt 0:07:06]} 11. Ncd4 {[%emt 0:00:45]} Qd7 {[%emt 0:00:26]} 12. Nxc6 {[%emt 0:00:10]} Bxc6 {[%emt 0:03:28]} 13. Qc2 {[%emt 0:00:11]} Bb7 {[%emt 0:00:52]} 14. e5 {[%emt 0:03:01]} dxe5 {[%emt 0:02:01]} 15. Nxe5 {[%emt 0:00:33]} Qc8 {[%emt 0:00:15]} 16. Qa4+ {[%emt 0:02:14]} Kf8 {[%emt 0:00:25]} 17. Nc6 {[%emt 0:01:59]} Ra6 {[%emt 0:11:48]} 18. Qb5 {[%emt 0:02:24]} Qa8 {[%emt 0:01:19]} 19. Nb8 {[%emt 0:03:55]} c6 {[%emt 0:03:33]} 20. Qe5 {[%emt 0:04:01]} Rb6 {[%emt 0:01:13]} 21. Be3 {[%emt 0:12:07]} c5 {[%emt 0:00:24]} 22. Bxc5 {[%emt 0:00:48]} Bxg2 {[%emt 0:02:53]} 23. Bxb6 {[%emt 0:00:41]} Ng4 {[%emt 0:02:05]} 24. Qc7 {[%emt 0:08:21]} g5 {[%emt 0:02:28]} 25. Bd4 {[%emt 0:04:35]} Bf6 {[%emt 0:01:22]} 26. Nd7+ {[%emt 0:00:57]} 1-0

[Event "41st Jacques-Lemans-Open 2022"]
[Site "St. Veit/Glan"]
[Date "2022.07.13"]
[Round "6.2"]
[White "Koelber, Daniel"]
[Black "Windhager, Hannes"]
[Result "1/2-1/2"]
[ECO "C68"]
[WhiteElo "2176"]
[BlackElo "2244"]
[Annotator "ChessBase"]
[PlyCount "21"]
[EventDate "2022.07.09"]
[EventType "swiss"]
[EventCountry "AUT"]
[SourceTitle "playchess.com"]
[Source "ChessBase"]
[SourceQuality "1"]
[TimeControl "40/5400+30:1800+30"]

1. e4 {[%emt 0:00:04]} e5 {[%emt 0:00:07]} 2. Nf3 {[%emt 0:01:07]} Nc6 {[%emt 0:00:06]} 3. Bb5 {[%emt 0:00:07]} a6 {[%emt 0:00:05]} 4. Bxc6 {[%emt 0:00:58]} dxc6 {[%emt 0:00:10]} 5. O-O {[%emt 0:00:09]} Bd6 {[%emt 0:00:21]} 6. d4 {[%emt 0:00:32]} exd4 {[%emt 0:00:09]} 7. Qxd4 {[%emt 0:00:06]} f6 {[%emt 0:00:14]} 8. Be3 {[%emt 0:01:29]} Ne7 {[%emt 0:00:25]} 9. Nbd2 {[%emt 0:00:20]} Be6 {[%emt 0:00:29]} 10. Qc3 {[%emt 0:03:12]} Qd7 {[%emt 0:00:59]} 11. Nc4 {[%emt 0:00:57]} 1/2-1/2

[Event "41st Jacques-Lemans-Open 2022"]
[Site "St. Veit/Glan"]
[Date "2022.07.13"]
[Round "6.3"]
[White "Huber, Benedikt"]
[Black "Hechl, Gerald"]
[Result "0-1"]
[ECO "A40"]
[WhiteElo "2289"]
[BlackElo "2222"]
[Annotator "ChessBase"]
[PlyCount "64"]
[EventDate "2022.07.09"]
[EventType "swiss"]
[EventCountry "AUT"]
[SourceTitle "playchess.com"]
[Source "ChessBase"]
[SourceQuality "1"]
[TimeControl "40/5400+30:1800+30"]

1. d4 {[%emt 0:00:03]} g6 {[%emt 0:00:04]} 2. e4 {[%emt 0:00:25]} Nf6 {[%emt 0:00:06]} 3. Nc3 {[%emt 0:05:59]} d5 {[%emt 0:00:06]} 4. e5 {[%emt 0:00:53]} Ne4 {[%emt 0:00:05]} 5. Nce2 {[%emt 0:03:51]} f6 {[%emt 0:00:07]} 6. f3 {[%emt 0:00:53]} Ng5 {[%emt 0:00:05]} 7. Bxg5 {[%emt 0:01:18]} fxg5 {[%emt 0:03:22]} 8. Qd2 {[%emt 0:06:53]} e6 {[%emt 0:00:05]} 9. Nh3 {[%emt 0:07:26]} Be7 {[%emt 0:00:05]} 10. O-O-O {[%emt 0:00:33]} c5 {[%emt 0:00:15]} 11. dxc5 {[%emt 0:06:59]} Nc6 {[%emt 0:00:06]} 12. Nd4 {[%emt 0:16:39]} Bxc5 {[%emt 0:08:17]} 13. Bb5 {[%emt 0:00:31]} Qb6 {[%emt 0:00:53]} 14. Nxg5 {[%emt 0:02:24]} h6 {[%emt 0:07:49]} 15. Nh3 {[%emt 0:01:24]} Bd7 {[%emt 0:00:42]} 16. Bxc6 {[%emt 0:01:20]} bxc6 {[%emt 0:00:05]} 17. Kb1 {[%emt 0:14:19]} Rb8 {[%emt 0:03:59]} 18. Nb3 {[%emt 0:03:19]} a5 {[%emt 0:24:17]} 19. Qxa5 {[%emt 0:02:09]} Qxa5 {[%emt 0:00:05]} 20. Nxa5 {[%emt 0:00:06]} Bb6 {[%emt 0:00:06]} 21. Nb3 {[%emt 0:00:14]} g5 {[%emt 0:01:13]} 22. c4 {[%emt 0:12:39]} dxc4 {[%emt 0:06:20]} 23. Nd2 {[%emt 0:00:16]} Bd4 {[%emt 0:00:09]} 24. Nxc4 {[%emt 0:00:35]} c5 {[%emt 0:00:03]} 25. Rhe1 {[%emt 0:05:13]} Ke7 {[%emt 0:01:03]} 26. b3 {[%emt 0:00:49]} Be8 {[%emt 0:01:58]} 27. Ng1 {[%emt 0:02:53]} Bg6+ {[%emt 0:00:06]} 28. Kc1 {[%emt 0:00:04]} Ra8 {[%emt 0:01:18]} 29. Re2 {[%emt 0:00:45]} Rhb8 {[%emt 0:00:49]} 30. Nh3 {[%emt 0:02:34]} Bc3 {[%emt 0:03:49]} 31. Rc2 {[%emt 0:01:54]} Rxb3 {[%emt 0:00:40]} 32. a3 {[%emt 0:00:36]} Rab8 {[%emt 0:00:52]} 0-1

[Event "41st Jacques-Lemans-Open 2022"]
[Site "St. Veit/Glan"]
[Date "2022.07.14"]
[Round "6.4"]
[White "Feinig, Mario"]
[Black "Bauer, Thomas"]
[Result "1-0"]
[ECO "B51"]
[WhiteElo "2141"]
[BlackElo "2228"]
[Annotator "ChessBase"]
[PlyCount "129"]
[EventDate "2022.07.09"]
[EventType "swiss"]
[EventCountry "AUT"]
[SourceTitle "playchess.com"]
[Source "ChessBase"]
[SourceQuality "1"]
[TimeControl "40/5400+30:1800+30"]

1. e4 {[%emt 0:00:03]} c5 {[%emt 0:00:03]} 2. Nf3 {[%emt 0:00:06]} d6 {[%emt 0:00:04]} 3. Bb5+ {[%emt 0:00:06]} Nd7 {[%emt 0:00:06]} 4. c3 {[%emt 0:00:22]} Ngf6 {[%emt 0:03:01]} 5. Qe2 {[%emt 0:00:12]} a6 {[%emt 0:01:23]} 6. Ba4 {[%emt 0:00:09]} b5 {[%emt 0:00:02]} 7. Bc2 {[%emt 0:00:09]} Bb7 {[%emt 0:00:02]} 8. d4 {[%emt 0:01:46]} g6 {[%emt 0:03:54]} 9. O-O {[%emt 0:00:14]} Bg7 {[%emt 0:00:02]} 10. Bg5 {[%emt 0:15:18]} O-O {[%emt 0:03:24]} 11. Nbd2 {[%emt 0:08:20]} e5 {[%emt 0:09:49]} 12. dxe5 {[%emt 0:17:03]} dxe5 {[%emt 0:04:19]} 13. Rfd1 {[%emt 0:00:48]} h6 {[%emt 0:07:31]} 14. Bxf6 {[%emt 0:01:03]} Qxf6 {[%emt 0:08:30]} 15. Nc4 {[%emt 0:15:31]} Rad8 {[%emt 0:12:17]} 16. Na5 {[%emt 0:05:16]} Bc8 {[%emt 0:07:02]} 17. a4 {[%emt 0:01:43]} Qb6 {[%emt 0:03:11]} 18. axb5 {[%emt 0:00:21]} axb5 {[%emt 0:00:17]} 19. b4 {[%emt 0:07:16]} c4 {[%emt 0:03:01]} 20. Rd5 {[%emt 0:02:05]} Nf6 {[%emt 0:07:19]} 21. Rxd8 {[%emt 0:00:11]} Rxd8 {[%emt 0:00:02]} 22. Rd1 {[%emt 0:00:42]} Re8 {[%emt 0:02:16]} 23. h3 {[%emt 0:03:47]} Bf8 {[%emt 0:00:02]} 24. Qe3 {[%emt 0:04:07]} Qc7 {[%emt 0:06:21]} 25. Nh2 {[%emt 0:01:54]} Kg7 {[%emt 0:02:20]} 26. Rd2 {[%emt 0:02:04]} Kh7 {[%emt 0:00:44]} 27. Qf3 {[%emt 0:00:54]} Qb6 {[%emt 0:02:30]} 28. Qe3 {[%emt 0:04:47]} Qc7 {[%emt 0:01:33]} 29. Bd1 {[%emt 0:00:57]} h5 {[%emt 0:00:02]} 30. g4 {[%emt 0:01:31]} Bh6 {[%emt 0:06:52]} 31. g5 {[%emt 0:00:15]} Bxg5 {[%emt 0:00:01]} 32. Qxg5 {[%emt 0:00:10]} Nxe4 {[%emt 0:00:02]} 33. Qe3 {[%emt 0:00:30]} Nxd2 {[%emt 0:00:01]} 34. Qxd2 {[%emt 0:00:02]} Rd8 {[%emt 0:01:18]} 35. Qe2 {[%emt 0:02:09]} e4 {[%emt 0:02:42]} 36. Bc2 {[%emt 0:00:26]} Rd5 {[%emt 0:00:02]} 37. Bxe4 {[%emt 0:02:08]} Rg5+ {[%emt 0:00:25]} 38. Kh1 {[%emt 0:00:07]} Bxh3 {[%emt 0:03:59]} 39. Qe3 {[%emt 0:02:55]} Qe5 {[%emt 0:02:47]} 40. f4 {[%emt 0:01:02]} Bg2+ {[%emt 0:00:37]} 41. Kg1 {[%emt 0:30:01]} Bxe4+ {[%emt 0:07:01]} 42. fxg5 {[%emt 0:00:00]} Qd5 {[%emt 0:00:01]} 43. Kf2 {[%emt 0:00:00]} Kg8 {[%emt 0:02:24]} 44. Nf1 {[%emt 0:00:00]} h4 {[%emt 0:02:28]} 45. Qf4 {[%emt 0:00:00]} Bg2 {[%emt 0:03:36]} 46. Nh2 {[%emt 0:00:00]} Qd3 {[%emt 0:08:41]} 47. Kxg2 {[%emt 0:00:00]} h3+ {[%emt 0:00:49]} 48. Kf2 {[%emt 0:00:16]} Qc2+ {[%emt 0:01:22]} 49. Kg3 {[%emt 0:00:59]} Qxc3+ {[%emt 0:00:57]} 50. Kh4 {[%emt 0:00:02]} Qh8+ {[%emt 0:02:54]} 51. Kg3 {[%emt 0:00:21]} Qc3+ {[%emt 0:00:28]} 52. Kh4 {[%emt 0:03:51]} Qxb4 {[%emt 0:01:55]} 53. Ng4 {[%emt 0:00:42]} Qe1+ {[%emt 0:03:07]} 54. Kxh3 {[%emt 0:00:10]} Qh1+ {[%emt 0:00:12]} 55. Kg3 {[%emt 0:00:14]} Qg1+ {[%emt 0:00:22]} 56. Kf3 {[%emt 0:00:31]} Qf1+ {[%emt 0:00:20]} 57. Ke4 {[%emt 0:01:03]} Qd3+ {[%emt 0:01:59]} 58. Ke5 {[%emt 0:00:18]} f5 {[%emt 0:00:28]} 59. gxf6 {[%emt 0:02:20]} Qc3+ {[%emt 0:00:31]} 60. Ke6 {[%emt 0:00:24]} Qe1+ {[%emt 0:00:29]} 61. Ne5 {[%emt 0:00:26]} Qxa5 {[%emt 0:00:30]} 62. f7+ {[%emt 0:00:15]} Kh7 {[%emt 0:00:03]} 63. Qh4+ {[%emt 0:00:26]} Kg7 {[%emt 0:00:09]} 64. Qf6+ {[%emt 0:00:14]} Kf8 {[%emt 0:00:15]} 65. Qh8# 1-0

[Event "41st Jacques-Lemans-Open 2022"]
[Site "St. Veit/Glan"]
[Date "2022.07.13"]
[Round "6.5"]
[White "Manhardt, Thomas"]
[Black "Miazhynski, Yuri"]
[Result "1/2-1/2"]
[ECO "A01"]
[WhiteElo "2227"]
[BlackElo "2166"]
[Annotator "ChessBase"]
[PlyCount "38"]
[EventDate "2022.07.09"]
[EventType "swiss"]
[EventCountry "AUT"]
[SourceTitle "playchess.com"]
[Source "ChessBase"]
[SourceQuality "1"]
[TimeControl "40/5400+30:1800+30"]

1. b3 {[%emt 0:00:39]} e5 {[%emt 0:00:44]} 2. Bb2 {[%emt 0:00:06]} d6 {[%emt 0:00:31]} 3. e3 {[%emt 0:01:50]} Nf6 {[%emt 0:08:32]} 4. d4 {[%emt 0:09:22]} e4 {[%emt 0:08:45]} 5. d5 {[%emt 0:04:52]} Bf5 {[%emt 0:06:52]} 6. Ne2 {[%emt 0:03:01]} Be7 {[%emt 0:01:40]} 7. Nbc3 {[%emt 0:01:46]} O-O {[%emt 0:04:45]} 8. Ng3 {[%emt 0:02:30]} Bg6 {[%emt 0:01:11]} 9. Be2 {[%emt 0:01:12]} Nbd7 {[%emt 0:04:49]} 10. O-O {[%emt 0:22:11]} c6 {[%emt 0:12:47]} 11. Qd4 {[%emt 0:04:18]} Qb6 {[%emt 0:09:48]} 12. Qd2 {[%emt 0:01:37]} Rfe8 {[%emt 0:02:12]} 13. Na4 {[%emt 0:04:45]} Qc7 {[%emt 0:01:48]} 14. c4 {[%emt 0:00:06]} Nc5 {[%emt 0:03:11]} 15. Nc3 {[%emt 0:04:35]} a5 {[%emt 0:00:34]} 16. Rac1 {[%emt 0:01:51]} Bf8 {[%emt 0:02:54]} 17. Kh1 {[%emt 0:00:44]} Qe7 {[%emt 0:05:59]} 18. Ba1 {[%emt 0:00:57]} Nfd7 {[%emt 0:02:13]} 19. Rcd1 {[%emt 0:03:01]} Qg5 {[%emt 0:05:45]} 1/2-1/2